Workbook

Sheet Leisure Centre
A1: Leisure Centre 122
B2: 9am | C2: 10am | D2: 11am | E2: 12am | F2: 1pm | G2: 2pm | H2: 3pm | I2: 4pm | J2: 5pm | K2: Capacity | L2: 85% Capacity
A3: Mon 10th | C3: 122 | D3: 119 | E3: 116 | F3: 91 | G3: 78 | H3: 91 | K3: 122 | L3: 103
A4: Tue 11th | C4: 122 | D4: 121 | E4: 115 | F4: 107 | G4: 87 | H4: 96 | K4: 122 | L4: 103
A5: Wed 12th | C5: 122 | D5: 122 | E5: 119 | F5: 121 | G5: 95 | H5: 83 | K5: 122 | L5: 103
A6: Thur 13th | C6: 120 | D6: 122 | E6: 109 | F6: 94 | G6: 100 | H6: 115 | K6: 122 | L6: 103
A7: Fri 14th | C7: 122 | D7: 115 | E7: 104 | F7: 96 | G7: 85 | H7: 83 | K7: 122 | L7: 103
A8: Sat 15th | C8: 94 | D8: 89 | E8: 100 | F8: 75 | G8: 73 | H8: 76 | K8: 122 | L8: 103

Sheet Old station
A1: Old station 149
B2: 9am | C2: 10am | D2: 11am | E2: 12am | F2: 1pm | G2: 2pm | H2: 3pm | I2: 4pm | J2: 5pm | K2: Capacity | L2: 85% Capacity
A3: Mon 10th | C3: 149 | D3: 149 | E3: 149 | F3: 149 | G3: 149 | H3: 144 | K3: 149 | L3: 126
A4: Tue 11th | C4: 149 | D4: 149 | E4: 147 | F4: 149 | G4: 147 | H4: 144 | K4: 149 | L4: 126
A5: Wed 12th | C5: 149 | D5: 149 | E5: 149 | F5: 149 | G5: 149 | H5: 142 | K5: 149 | L5: 126
A6: Thur 13th | C6: 149 | D6: 149 | E6: 149 | F6: 149 | G6: 149 | H6: 149 | K6: 149 | L6: 126
A7: Fri 14th | C7: 149 | D7: 149 | E7: 149 | F7: 149 | G7: 149 | H7: 140 | K7: 149 | L7: 126
A8: Sat 15th | C8: 44 | D8: 64 | E8: 78 | F8: 88 | G8: 75 | H8: 57 | K8: 149 | L8: 126

Sheet Sheep St
A1: Shhep Street 77 | D1: Car Park Closed
B2: 9am | C2: 10am | D2: 11am | E2: 12am | F2: 1pm | G2: 2pm | H2: 3pm | I2: 4pm | J2: 5pm | K2: Capacity | L2: 85% Capacity
A3: Mon 10th | K3: 77 | L3: 65
A4: Tue 11th | K4: 77 | L4: 65
A5: Wed 12th | K5: 77 | L5: 65
A6: Thur 13th | K6: 77 | L6: 65
A7: Fri 14th | K7: 77 | L7: 65
A8: Sat 15th | K8: 77 | L8: 65

Sheet Brewery
A1: Brewery 298
B2: 9am | C2: 10am | D2: 11am | E2: 12am | F2: 1pm | G2: 2pm | H2: 3pm | I2: 4pm | J2: 5pm | K2: Capacity | L2: 85% Capacity
A3: Mon 10th | C3: 226 | D3: 267 | E3: 259 | F3: 263 | G3: 280 | H3: 297 | K3: 298 | L3: 253
A4: Tue 11th | C4: 243 | D4: 296 | E4: 295 | F4: 284 | G4: 265 | H4: 298 | K4: 298 | L4: 253
A5: Wed 12th | C5: 233 | D5: 174 | E5: 228 | F5: 282 | G5: 270 | H5: 291 | K5: 298 | L5: 253
A6: Thur 13th | C6: 272 | D6: 298 | E6: 298 | F6: 294 | G6: 285 | H6: 298 | K6: 298 | L6: 253
A7: Fri 14th | C7: 298 | D7: 298 | E7: 298 | F7: 298 | G7: 292 | H7: 298 | K7: 298 | L7: 253
A8: Sat 15th | C8: 197 | D8: 235 | E8: 230 | F8: 216 | G8: 196 | H8: 198 | K8: 298 | L8: 253

Sheet Forum
A1: Forum 191
B2: 9am | C2: 10am | D2: 11am | E2: 12am | F2: 1pm | G2: 2pm | H2: 3pm | I2: 4pm | J2: 5pm | K2: Capacity | L2: 85% Capacity
A3: Mon 10th | C3: 86 | D3: 155 | E3: 155 | F3: 143 | G3: 153 | H3: 163 | K3: 191 | L3: 162
A4: Tue 11th | C4: 141 | D4: 191 | E4: 181 | F4: 170 | G4: 148 | H4: 158 | K4: 191 | L4: 162
A5: Wed 12th | C5: 101 | D5: 115 | E5: 173 | F5: 165 | G5: 171 | H5: 187 | K5: 191 | L5: 162
A6: Thur 13th | C6: 155 | D6: 191 | E6: 188 | F6: 189 | G6: 169 | H6: 191 | K6: 191 | L6: 162
A7: Fri 14th | C7: 189 | D7: 191 | E7: 191 | F7: 191 | G7: 187 | H7: 191 | K7: 191 | L7: 162
A8: Sat 15th | C8: 159 | D8: 177 | E8: 191 | F8: 185 | G8: 176 | H8: 185 | K8: 191 | L8: 162

Sheet Beeches
A1: Beeches 144
B2: 9am | C2: 10am | D2: 11am | E2: 12am | F2: 1pm | G2: 2pm | H2: 3pm | I2: 4pm | J2: 5pm | K2: Capacity | L2: 85% Capacity
A3: Mon 10th | C3: 143 | D3: 144 | E3: 142 | F3: 142 | G3: 139 | H3: 131 | K3: 144 | L3: 122
A4: Tue 11th | C4: 143 | D4: 143 | E4: 144 | F4: 134 | G4: 123 | H4: 112 | K4: 144 | L4: 122
A5: Wed 12th | C5: 144 | D5: 144 | E5: 144 | F5: 136 | G5: 132 | H5: 120 | K5: 144 | L5: 122
A6: Thur 13th | C6: 144 | D6: 144 | E6: 144 | F6: 144 | G6: 143 | H6: 129 | K6: 144 | L6: 122
A7: Fri 14th | C7: 143 | D7: 144 | E7: 144 | F7: 143 | G7: 137 | H7: 118 | K7: 144 | L7: 122
A8: Sat 15th | C8: 97 | D8: 102 | E8: 104 | F8: 105 | G8: 137 | H8: 136 | K8: 144 | L8: 122

Sheet waterloo
A1: Waterloo 233
B2: 9am | C2: 10am | D2: 11am | E2: 12am | F2: 1pm | G2: 2pm | H2: 3pm | I2: 4pm | J2: 5pm | K2: Capacity | L2: 85% Capacity
A3: Mon 10th | C3: 182 | D3: 208 | E3: 207 | F3: 198 | G3: 184 | H3: 152 | K3: 233 | L3: 198
A4: Tue 11th | C4: 214 | D4: 223 | E4: 205 | F4: 207 | G4: 196 | H4: 179 | K4: 233 | L4: 198
A5: Wed 12th | C5: 161 | D5: 182 | E5: 210 | F5: 205 | G5: 205 | H5: 187 | K5: 233 | L5: 198
A6: Thur 13th | C6: 211 | D6: 225 | E6: 227 | F6: 232 | G6: 223 | H6: 167 | K6: 233 | L6: 198
A7: Fri 14th | C7: 233 | D7: 233 | E7: 228 | F7: 222 | G7: 211 | H7: 180 | K7: 233 | L7: 198
A8: Sat 15th | C8: 100 | D8: 122 | E8: 148 | F8: 137 | G8: 101 | H8: 85 | K8: 233 | L8: 198

Sheet Abbey
A1: Abbey 97
B2: 9am | C2: 10am | D2: 11am | E2: 12am | F2: 1pm | G2: 2pm | H2: 3pm | I2: 4pm | J2: 5pm | K2: Capacity | L2: 85% Capacity
A3: Mon 10th | C3: 97 | D3: 97 | E3: 97 | F3: 96 | G3: 97 | H3: 87 | K3: 97 | L3: 82
A4: Tue 11th | C4: 97 | D4: 97 | E4: 97 | F4: 97 | G4: 97 | H4: 88 | K4: 97 | L4: 82
A5: Wed 12th | C5: 97 | D5: 97 | E5: 97 | F5: 97 | G5: 95 | H5: 97 | K5: 97 | L5: 82
A6: Thur 13th | C6: 97 | D6: 97 | E6: 97 | F6: 97 | G6: 97 | H6: 92 | K6: 97 | L6: 82
A7: Fri 14th | C7: 96 | D7: 97 | E7: 97 | F7: 96 | G7: 97 | H7: 93 | K7: 97 | L7: 82
A8: Sat 15th | C8: 42 | D8: 55 | E8: 68 | F8: 53 | G8: 32 | H8: 28 | K8: 97 | L8: 82

Sheet Overview
A2: 2020-02-10 | B2: 10am | C2: 11am | D2: 12am | E2: 1pm | F2: 2pm | G2: 3pm
A3: Leisure Centre 122 | B3: 0 | C3: 3 | D3: 6 | E3: 31 | F3: 44 | G3: 31 | H3: 5 or less spaces
A4: Old Station 149 | B4: 0 | C4: 0 | D4: 0 | E4: 0 | F4: 0 | G4: 5
A5: Sheep Street 77
A6: Brewery 298 | B6: 72 | C6: 31 | D6: 39 | E6: 35 | F6: 18 | G6: 1
A7: Forum 191 | B7: 105 | C7: 36 | D7: 36 | E7: 48 | F7: 38 | G7: 28
A8: Beeches 144 | B8: 1 | C8: 0 | D8: 2 | E8: 2 | F8: 5 | G8: 13
A9: Waterloo 233 | B9: 51 | C9: 25 | D9: 26 | E9: 35 | F9: 49 | G9: 81
A10: Abbey 97 | B10: 0 | C10: 0 | D10: 0 | E10: 1 | F10: 0 | G10: 10
A11: 1312 | B11: =SUM(B3:B10) -> 229 | C11: =SUM(C3:C10) -> 95 | D11: 109 | E11: 152 | F11: 154 | G11: 169
A12: Long stay 701 | B12: =B4+B8+B9+B10 -> 52 | C12: =C4+C5+C8+C9+C10 -> 25 | D12: 28 | E12: 38 | F12: 54 | G12: 109 | H12: 5% or less
B13: =B12/701 -> 0.07417974322 | C13: 0.03566333809 | D13: 0.03994293866 | E13: 0.05420827389 | F13: 0.07703281027 | G13: 0.1554921541
A14: Short stay 611 | B14: =B3+B6+B7 -> 177 | C14: =C3+C6+C7 -> 70 | D14: 81 | E14: 114 | F14: 100 | G14: 60
B15: =B14/611 -> 0.2896890344 | C15: 0.1145662848 | D15: 0.1325695581 | E15: 0.1865793781 | F15: 0.1636661211 | G15: 0.09819967267
A17: 2020-02-11 | B17: 10am | C17: 11am | D17: 12am | E17: 1pm | F17: 2pm | G17: 3pm
A18: Leisure Centre 122 | B18: 0 | C18: 1 | D18: 7 | E18: 15 | F18: 35 | G18: 26
A19: Old Station 149 | B19: 0 | C19: 0 | D19: 2 | E19: 0 | F19: 2 | G19: 5
A20: Sheep Street 77 | B20: 0 | C20: 0 | D20: 0 | E20: 0 | F20: 0 | G20: 0
A21: Brewery 298 | B21: 55 | C21: 2 | D21: 3 | E21: 14 | F21: 33 | G21: 0
A22: Forum 191 | B22: 50 | C22: 0 | D22: 10 | E22: 21 | F22: 43 | G22: 33
A23: Beeches 144 | B23: 1 | C23: 1 | D23: 0 | E23: 10 | F23: 21 | G23: 32
A24: Waterloo 233 | B24: 19 | C24: 10 | D24: 28 | E24: 26 | F24: 37 | G24: 54
A25: Abbey 97 | B25: 0 | C25: 0 | D25: 0 | E25: 0 | F25: 0 | G25: 9
B26: =SUM(B18:B25) -> 125 | C26: 14 | D26: 50 | E26: 86 | F26: 171 | G26: 159
A27: Long stay 701 | B27: =B19+B20+B23+B24+B25 -> 20 | C27: =C19+C20+C23+C24+C25 -> 11 | D27: 30 | E27: 36 | F27: 60 | G27: 100
A28: 701 | B28: =B27/701 -> 0.02853067047 | C28: =C27/$A$28 -> 0.01569186876 | D28: 0.04279600571 | E28: 0.05135520685 | F28: 0.08559201141 | G28: 0.1426533524
A29: Short stay 611 | B29: =SUM(B18+B21+B22) -> 105 | C29: =SUM(C18+C21+C22) -> 3 | D29: 20 | E29: 50 | F29: 111 | G29: 59
B30: =B29/613 -> 0.1712887439 | C30: 0.004893964111 | D30: 0.03262642741 | E30: 0.08156606852 | F30: 0.1810766721 | G30: 0.09624796085
A32: 2020-02-12 | B32: 10am | C32: 11am | D32: 12am | E32: 1pm | F32: 2pm | G32: 3pm
A33: Leisure Centre 122 | B33: 0 | C33: 0 | D33: 3 | E33: 1 | F33: 27 | G33: 39
A34: Old Station 149 | B34: 0 | C34: 0 | D34: 0 | E34: 0 | F34: 0 | G34: 7
A35: Sheep Street 77 | B35: 0 | C35: 0 | D35: 0 | E35: 0 | F35: 0 | G35: 0
A36: Brewery 298 | B36: 65 | C36: 59 | D36: 5 | E36: 16 | F36: 28 | G36: 7
A37: Forum 191 | B37: 90 | C37: 76 | D37: 18 | E37: 26 | F37: 20 | G37: 4
A38: Beeches 144 | B38: 0 | C38: 0 | D38: 0 | E38: 8 | F38: 12 | G38: 24
A39: Waterloo 233 | B39: 72 | C39: 51 | D39: 23 | E39: 28 | F39: 28 | G39: 46
A40: Abbey 97 | B40: 0 | C40: 0 | D40: 0 | E40: 0 | F40: 2 | G40: 0
B41: =SUM(B33:B40) -> 227 | C41: 186 | D41: 49 | E41: 79 | F41: 117 | G41: 127
A42: Long stay 701 | B42: =B34+B35+B38+B39+B40 -> 72 | C42: =C34+C35+C38+C39+C40 -> 51 | D42: 23 | E42: 36 | F42: 42 | G42: 77
A43: 701 | B43: =B42/701 -> 0.1027104137 | C43: =C42/701 -> 0.0727532097 | D43: 0.03281027104 | E43: 0.05135520685 | F43: 0.05991440799 | G43: 0.1098430813
A44: Short stay 611 | B44: =SUM(B33+B36+B37) -> 155 | C44: =SUM(C33+C36+C37) -> 135 | D44: 26 | E44: 43 | F44: 75 | G44: 50
B45: =B44/611 -> 0.2536824877 | C45: =C44/611 -> 0.2209492635 | D45: 0.04255319149 | E45: 0.07037643208 | F45: 0.1227495908 | G45: 0.08183306056
A47: 2020-02-13 | B47: 10am | C47: 11am | D47: 12am | E47: 1pm | F47: 2pm | G47: 3pm
A48: Leisure Centre 122 | B48: 2 | C48: 0 | D48: 13 | E48: 28 | F48: 22 | G48: 7
A49: Old Station 149 | B49: 0 | C49: 0 | D49: 0 | E49: 0 | F49: 0 | G49: 0
A50: Sheep Street 77
A51: Brewery 298 | B51: 26 | C51: 0 | D51: 0 | E51: 4 | F51: 13 | G51: 0
A52: Forum 191 | B52: 36 | C52: 0 | D52: 3 | E52: 2 | F52: 22 | G52: 0
A53: Beeches 144 | B53: 0 | C53: 0 | D53: 0 | E53: 0 | F53: 1 | G53: 15
A54: Waterloo 233 | B54: 22 | C54: 8 | D54: 6 | E54: 1 | F54: 10 | G54: 66
A55: Abbey 97 | B55: 0 | C55: 0 | D55: 0 | E55: 0 | F55: 0 | G55: 5
B56: =SUM(B48:B55) -> 86 | C56: 8 | D56: 22 | E56: 35 | F56: 68 | G56: 93
A57: Long stay 701 | B57: =B49+B50+B53+B54+B55 -> 22 | C57: 8 | D57: 6 | E57: 1 | F57: 11 | G57: 86
A58: 701 | B58: =B57/701 -> 0.03138373752 | C58: =C57/701 -> 0.01141226819 | D58: 0.008559201141 | E58: 0.001426533524 | F58: 0.01569186876 | G58: 0.122681883
A59: Short stay 611 | B59: =SUM(B48+B51+B52) -> 64 | C59: 0 | D59: 16 | E59: 34 | F59: 57 | G59: 7
A60: 611 | B60: =B59/611 -> 0.1047463175 | C60: =C59/611 -> 0 | D60: 0.02618657938 | E60: 0.05564648118 | F60: 0.09328968903 | G60: 0.01145662848
A62: 2020-02-14 | B62: 10am | C62: 11am | D62: 12am | E62: 1pm | F62: 2pm | G62: 3pm
A63: Leisure Centre 122 | B63: 0 | C63: 7 | D63: 18 | E63: 26 | F63: 37 | G63: 39
A64: Old Station 149 | B64: 0 | C64: 0 | D64: 0 | E64: 0 | F64: 0 | G64: 9
A65: Sheep Street 77
A66: Brewery 298 | B66: 0 | C66: 0 | D66: 0 | E66: 0 | F66: 6 | G66: 0
A67: Forum 191 | B67: 2 | C67: 0 | D67: 0 | E67: 0 | F67: 4 | G67: 0
A68: Beeches 144 | B68: 1 | C68: 0 | D68: 0 | E68: 1 | F68: 7 | G68: 26
A69: Waterloo 233 | B69: 0 | C69: 0 | D69: 5 | E69: 11 | F69: 22 | G69: 53
A70: Abbey 97 | B70: 1 | C70: 0 | D70: 0 | E70: 1 | F70: 0 | G70: 4
B71: =SUM(B63:B70) -> 4 | C71: 7 | D71: 23 | E71: 39 | F71: 76 | G71: =SUM(G63:G70) -> 131
A72: Long stay 701 | B72: =SUM(B64+B68+B69+B70) -> 2 | C72: =SUM(C64+C65+C68+C69+C70) -> 0 | D72: =SUM(D64+D65+D68+D69+D70) -> 5 | E72: =SUM(E64+E65+E68+E69+E70) -> 13 | F72: =SUM(F64+F65+F68+F69+F70) -> 29 | G72: =SUM(G64+G65+G68+G69+G70) -> 92
A73: 701 | B73: =B72/701 -> 0.002853067047 | C73: =C72/701 -> 0 | D73: 0.007132667618 | E73: 0.01854493581 | F73: 0.04136947218 | G73: 0.1312410842
A74: Short stay 611 | B74: =SUM(B63+B66+B67) -> 2 | C74: 7 | D74: 18 | E74: 26 | F74: 47 | G74: 39
A75: 611 | B75: =B74/611 -> 0.003273322422 | C75: 0.01145662848 | D75: 0.0294599018 | E75: 0.04255319149 | F75: 0.07692307692 | G75: 0.06382978723
A77: 2020-02-15 | B77: 10am | C77: 11am | D77: 12am | E77: 1pm | F77: 2pm | G77: 3pm
A78: Leisure Centre 122 | B78: 28 | C78: 33 | D78: 22 | E78: 47 | F78: 49 | G78: 46
A79: Old Station 149 | B79: 105 | C79: 85 | D79: 71 | E79: 61 | F79: 74 | G79: 92
A80: Sheep Street 77
A81: Brewery 298 | B81: 101 | C81: 63 | D81: 68 | E81: 82 | F81: 102 | G81: 100
A82: Forum 191 | B82: 32 | C82: 14 | D82: 0 | E82: 6 | F82: 15 | G82: 6
A83: Beeches 144 | B83: 47 | C83: 42 | D83: 40 | E83: 39 | F83: 7 | G83: 8
A84: Waterloo 233 | B84: 133 | C84: 111 | D84: 85 | E84: 96 | F84: 132 | G84: 148
A85: Abbey 97 | B85: 55 | C85: 42 | D85: 29 | E85: 44 | F85: 65 | G85: 69
B86: =SUM(B78:B85) -> 501 | C86: =SUM(C78:C85) -> 390 | D86: 315 | E86: 375 | F86: 444 | G86: 469
A87: Long stay 701 | B87: =B79+B80+B83+B84+B85 -> 340 | C87: =C79+C80+C83+C84+C85 -> 280 | D87: =D79+D80+D83+D84+D85 -> 225 | E87: 240 | F87: 278 | G87: 317
A88: 701 | B88: =B87/701 -> 0.485021398 | C88: =C87/701 -> 0.3994293866 | D88: 0.3209700428 | E88: 0.3423680456 | F88: =F87/701 -> 0.3965763195 | G88: =G87/701 -> 0.452211127
A89: Short stay 611 | B89: =SUM(B78+B81+B82) -> 161 | C89: =SUM(C78+C81+C82) -> 110 | D89: =SUM(D78+D81+D82) -> 90 | E89: 135 | F89: 166 | G89: 152
A90: 611 | B90: =B89/611 -> 0.263502455 | C90: 0.1800327332 | D90: 0.147299509 | E90: 0.2209492635 | F90: 0.271685761 | G90: 0.2487725041
